[Event "*** Titled Tuesday Blitz"]
[Site "Chess.com"]
[Date "2021.03.09"]
[Round "5"]
[White "Milchone1"]
[Black "DonBroca"]
[Result "1-0"]
[WhiteElo "2518"]
[BlackElo "2147"]
[TimeControl "180+1"]
[EndTime "10:54:27 PST"]
[Termination "Milchone1 won by resignation"]

1. Nf3 {[%clk 0:03:00.9]} 1... g6 {[%clk 0:02:58.9]} 2. d4 {[%clk 0:03:00.4]}
2... Bg7 {[%clk 0:02:59.8]} 3. c4 {[%clk 0:03:00.9]} 3... d6 {[%clk 0:02:59.6]}
4. Nc3 {[%clk 0:03:00.9]} 4... Nf6 {[%clk 0:03:00.2]} 5. e4 {[%clk 0:03:01.3]}
5... O-O {[%clk 0:03:00.2]} 6. h3 {[%clk 0:03:01.8]} 6... e5 {[%clk 0:02:53.6]}
7. dxe5 {[%clk 0:03:02.7]} 7... dxe5 {[%clk 0:02:53.2]} 8. Be3 {[%clk
0:03:02.3]} 8... Qe7 {[%clk 0:02:39.3]} 9. Be2 {[%clk 0:03:02]} 9... Nbd7 {[%clk
0:02:32.8]} 10. O-O {[%clk 0:03:01.1]} 10... b6 {[%clk 0:02:27.2]} 11. Nd5
{[%clk 0:02:59.9]} 11... Nxd5 {[%clk 0:02:26]} 12. cxd5 {[%clk 0:03:00.8]} 12...
Bb7 {[%clk 0:02:21.4]} 13. Rc1 {[%clk 0:02:59.9]} 13... Rac8 {[%clk 0:02:20.4]}
14. Qa4 {[%clk 0:02:58.4]} 14... a6 {[%clk 0:02:17.2]} 15. Rfd1 {[%clk
0:02:52.8]} 15... c5 {[%clk 0:02:08.4]} 16. dxc6 {[%clk 0:02:49.3]} 16... Nc5
{[%clk 0:02:09.3]} 17. Bxc5 {[%clk 0:02:47]} 17... Bxc6 {[%clk 0:02:05]} 18.
Bxe7 {[%clk 0:02:38.8]} 18... Bxa4 {[%clk 0:02:04.2]} 19. Bxf8 {[%clk
0:02:38.3]} 19... Rxf8 {[%clk 0:01:53.8]} 20. b3 {[%clk 0:02:37.5]} 20... Bb5
{[%clk 0:01:53.4]} 21. Bxb5 {[%clk 0:02:35.9]} 21... axb5 {[%clk 0:01:54.3]} 22.
Rd6 {[%clk 0:02:33.6]} 22... Bh6 {[%clk 0:01:55.2]} 23. Rc2 {[%clk 0:02:32.3]}
23... Rb8 {[%clk 0:01:56.1]} 24. Nxe5 {[%clk 0:02:29.1]} 24... Bf8 {[%clk
0:01:57]} 25. Rdc6 {[%clk 0:02:26.9]} 25... Bg7 {[%clk 0:01:56.1]} 26. Rc8+
{[%clk 0:02:25.9]} 26... Rxc8 {[%clk 0:01:54.7]} 27. Rxc8+ {[%clk 0:02:26.8]}
27... Bf8 {[%clk 0:01:55.3]} 28. Nd7 {[%clk 0:02:26.1]} 28... Kg7 {[%clk
0:01:55.8]} 29. Nxf8 {[%clk 0:02:24.2]} 29... f5 {[%clk 0:01:56.7]} 30. exf5
{[%clk 0:02:23.5]} 30... gxf5 {[%clk 0:01:57.6]} 31. Rb8 {[%clk 0:02:22.9]} 1-0

[Event "*** Titled Tuesday Blitz"]
[Site "Chess.com"]
[Date "2021.03.09"]
[Round "5"]
[White "zajka-molotok"]
[Black "Kaslask"]
[Result "1-0"]
[WhiteElo "2509"]
[BlackElo "2336"]
[TimeControl "180+1"]
[EndTime "10:54:30 PST"]
[Termination "zajka-molotok won by resignation"]

1. b4 {[%clk 0:03:00.9]} 1... c6 {[%clk 0:02:56.9]} 2. Bb2 {[%clk 0:02:54.8]}
2... a5 {[%clk 0:02:55.2]} 3. a3 {[%clk 0:02:55]} 3... Qb6 {[%clk 0:02:54.9]} 4.
c4 {[%clk 0:02:54.8]} 4... d6 {[%clk 0:02:39.5]} 5. d4 {[%clk 0:02:53.9]} 5...
Nf6 {[%clk 0:02:37.5]} 6. e3 {[%clk 0:02:49.8]} 6... g6 {[%clk 0:02:36]} 7. Nf3
{[%clk 0:02:47.6]} 7... Bg7 {[%clk 0:02:35.2]} 8. c5 {[%clk 0:02:47.7]} 8... Qc7
{[%clk 0:02:29.6]} 9. Nc3 {[%clk 0:02:46.2]} 9... O-O {[%clk 0:02:26.5]} 10. Be2
{[%clk 0:02:45.3]} 10... b6 {[%clk 0:02:24.6]} 11. cxd6 {[%clk 0:02:41]} 11...
Qxd6 {[%clk 0:02:16.4]} 12. b5 {[%clk 0:02:40]} 12... c5 {[%clk 0:02:14.8]} 13.
O-O {[%clk 0:02:36.3]} 13... cxd4 {[%clk 0:02:13]} 14. Nxd4 {[%clk 0:02:29]}
14... Bb7 {[%clk 0:02:09.2]} 15. Bf3 {[%clk 0:02:27.4]} 15... Qd7 {[%clk
0:01:59.1]} 16. Nc6 {[%clk 0:02:13.1]} 16... Rc8 {[%clk 0:01:57.9]} 17. Qxd7
{[%clk 0:02:09.3]} 17... Nbxd7 {[%clk 0:01:41.5]} 18. Nxe7+ {[%clk 0:02:08.7]}
1-0

[Event "*** Titled Tuesday Blitz"]
[Site "Chess.com"]
[Date "2021.03.09"]
[Round "5"]
[White "KacperPolOK"]
[Black "Thjop"]
[Result "0-1"]
[WhiteElo "2508"]
[BlackElo "2663"]
[TimeControl "180+1"]
[EndTime "10:54:42 PST"]
[Termination "Thjop won by resignation"]

1. e4 {[%clk 0:03:00.9]} 1... e6 {[%clk 0:02:58.4]} 2. d4 {[%clk 0:02:56.9]}
2... d5 {[%clk 0:02:59.3]} 3. Nd2 {[%clk 0:02:55.7]} 3... c5 {[%clk 0:02:57.7]}
4. exd5 {[%clk 0:02:55.1]} 4... exd5 {[%clk 0:02:58.6]} 5. Ngf3 {[%clk
0:02:53.7]} 5... a6 {[%clk 0:02:58.4]} 6. Be2 {[%clk 0:02:48]} 6... Nf6 {[%clk
0:02:55.8]} 7. O-O {[%clk 0:02:47.8]} 7... Be7 {[%clk 0:02:54.9]} 8. dxc5 {[%clk
0:02:47.7]} 8... Bxc5 {[%clk 0:02:55.8]} 9. Nb3 {[%clk 0:02:48]} 9... Bb6 {[%clk
0:02:56.2]} 10. Nbd4 {[%clk 0:02:46.8]} 10... O-O {[%clk 0:02:52.2]} 11. Bg5
{[%clk 0:02:44]} 11... h6 {[%clk 0:02:51.6]} 12. Bh4 {[%clk 0:02:42.7]} 12... g5
{[%clk 0:02:51.4]} 13. Bg3 {[%clk 0:02:42.6]} 13... Ne4 {[%clk 0:02:50.8]} 14.
c3 {[%clk 0:02:42.7]} 14... Nc6 {[%clk 0:02:47.6]} 15. Nxc6 {[%clk 0:02:18]}
15... bxc6 {[%clk 0:02:46.3]} 16. Nd4 {[%clk 0:02:18]} 16... Bd7 {[%clk
0:02:42.4]} 17. Kh1 {[%clk 0:02:16.3]} 17... f5 {[%clk 0:02:39.5]} 18. Be5
{[%clk 0:02:12.6]} 18... f4 {[%clk 0:02:27.2]} 19. Bg4 {[%clk 0:01:50.7]} 19...
Re8 {[%clk 0:02:15.9]} 20. Nf3 {[%clk 0:01:35.6]} 20... Bxg4 {[%clk 0:02:13.2]}
0-1

[Event "*** Titled Tuesday Blitz"]
[Site "Chess.com"]
[Date "2021.03.09"]
[Round "5"]
[White "ChessQueen"]
[Black "ChessAurochs"]
[Result "1-0"]
[WhiteElo "2780"]
[BlackElo "2576"]
[TimeControl "180+1"]
[EndTime "10:54:56 PST"]
[Termination "ChessQueen won by resignation"]

1. Nf3 {[%clk 0:03:00.9]} 1... Nf6 {[%clk 0:03:00.2]} 2. g3 {[%clk 0:02:59.7]}
2... d5 {[%clk 0:02:59.4]} 3. Bg2 {[%clk 0:02:57.6]} 3... b5 {[%clk 0:02:59.8]}
4. O-O {[%clk 0:02:53.1]} 4... e6 {[%clk 0:02:48.9]} 5. a4 {[%clk 0:02:50.5]}
5... b4 {[%clk 0:02:39.9]} 6. d3 {[%clk 0:02:44.8]} 6... c5 {[%clk 0:02:38]} 7.
c4 {[%clk 0:02:41.5]} 7... Bb7 {[%clk 0:02:34.6]} 8. a5 {[%clk 0:02:32.2]} 8...
a6 {[%clk 0:02:32.9]} 9. Nbd2 {[%clk 0:02:29.9]} 9... Nc6 {[%clk 0:02:25.4]} 10.
Qa4 {[%clk 0:02:27.9]} 10... Bd6 {[%clk 0:02:15.7]} 11. Nb3 {[%clk 0:02:25.5]}
11... O-O {[%clk 0:02:14.3]} 12. Bg5 {[%clk 0:02:22.7]} 12... Ne7 {[%clk
0:02:08.9]} 13. Bxf6 {[%clk 0:02:15.3]} 13... gxf6 {[%clk 0:02:09.8]} 14. cxd5
{[%clk 0:02:12.5]} 14... Bxd5 {[%clk 0:02:01]} 15. Rac1 {[%clk 0:02:07.7]} 15...
Rc8 {[%clk 0:01:58.1]} 16. Nfd2 {[%clk 0:02:04.6]} 16... Nc6 {[%clk 0:01:41.3]}
17. Nc4 {[%clk 0:01:58.4]} 17... Bxg2 {[%clk 0:01:33.4]} 18. Kxg2 {[%clk
0:01:57.9]} 18... Bc7 {[%clk 0:01:31.6]} 19. Qxc6 {[%clk 0:01:54.3]} 1-0

[Event "*** Titled Tuesday Blitz"]
[Site "Chess.com"]
[Date "2021.03.09"]
[Round "5"]
[White "poneis_malditos"]
[Black "lagedema"]
[Result "1-0"]
[WhiteElo "2337"]
[BlackElo "2476"]
[TimeControl "180+1"]
[EndTime "10:54:57 PST"]
[Termination "poneis_malditos won by checkmate"]

1. e4 {[%clk 0:03:00.9]} 1... c6 {[%clk 0:02:29.6]} 2. d4 {[%clk 0:02:59.9]}
2... d5 {[%clk 0:02:30.5]} 3. Nd2 {[%clk 0:02:59.9]} 3... dxe4 {[%clk
0:02:30.6]} 4. Nxe4 {[%clk 0:03:00.8]} 4... Bd7 {[%clk 0:02:31.3]} 5. c3 {[%clk
0:02:58.7]} 5... Nf6 {[%clk 0:02:31.7]} 6. Nxf6+ {[%clk 0:02:56.7]} 6... exf6
{[%clk 0:02:32.6]} 7. Bd3 {[%clk 0:02:56.3]} 7... Bd6 {[%clk 0:02:33]} 8. Ne2
{[%clk 0:02:56.9]} 8... O-O {[%clk 0:02:33.2]} 9. Qc2 {[%clk 0:02:57.5]} 9... g6
{[%clk 0:02:31]} 10. Be3 {[%clk 0:02:58]} 10... Re8 {[%clk 0:02:30.4]} 11. O-O-O
{[%clk 0:02:57.7]} 11... b5 {[%clk 0:02:27.7]} 12. Kb1 {[%clk 0:02:57]} 12...
Na6 {[%clk 0:02:24.6]} 13. Ng3 {[%clk 0:02:57.1]} 13... Nc7 {[%clk 0:02:25]} 14.
Ne4 {[%clk 0:02:56.6]} 14... Bf8 {[%clk 0:02:23.2]} 15. h4 {[%clk 0:02:51.1]}
15... Nd5 {[%clk 0:02:21.9]} 16. Bc1 {[%clk 0:02:49.9]} 16... h5 {[%clk
0:02:19.4]} 17. Nc5 {[%clk 0:02:44.7]} 17... Bg7 {[%clk 0:02:09.5]} 18. f3
{[%clk 0:02:38.5]} 18... f5 {[%clk 0:02:07.3]} 19. Bg5 {[%clk 0:02:25.2]} 19...
Qc7 {[%clk 0:02:06.6]} 20. Rdg1 {[%clk 0:02:18.8]} 20... Ne3 {[%clk 0:02:03.8]}
21. Qc1 {[%clk 0:02:05.3]} 21... Nc4 {[%clk 0:02:00.6]} 22. g4 {[%clk
0:02:01.4]} 22... fxg4 {[%clk 0:01:58.6]} 23. fxg4 {[%clk 0:02:01]} 23... Bxg4
{[%clk 0:01:59.2]} 24. Rxg4 {[%clk 0:01:58.9]} 24... hxg4 {[%clk 0:02:00.1]} 25.
h5 {[%clk 0:01:59.2]} 25... gxh5 {[%clk 0:02:00.1]} 26. Rxh5 {[%clk 0:01:56.4]}
26... Qg3 {[%clk 0:01:59.8]} 27. Bh7+ {[%clk 0:01:48.2]} 27... Kf8 {[%clk
0:02:00.2]} 28. Nd7# {[%clk 0:01:46.6]} 1-0

[Event "*** Titled Tuesday Blitz"]
[Site "Chess.com"]
[Date "2021.03.09"]
[Round "5"]
[White "VinzentSpitzl"]
[Black "Kildepiotr"]
[Result "0-1"]
[WhiteElo "2355"]
[BlackElo "2562"]
[TimeControl "180+1"]
[EndTime "10:55:09 PST"]
[Termination "Kildepiotr won by resignation"]

1. b3 {[%clk 0:03:00.9]} 1... d5 {[%clk 0:02:59.1]} 2. Nf3 {[%clk 0:02:58.9]}
2... c5 {[%clk 0:02:59.1]} 3. e3 {[%clk 0:02:56.9]} 3... f6 {[%clk 0:02:57.2]}
4. d4 {[%clk 0:02:49.5]} 4... Nc6 {[%clk 0:02:57.1]} 5. Bb2 {[%clk 0:02:40.1]}
5... Bg4 {[%clk 0:02:56.4]} 6. h3 {[%clk 0:02:37]} 6... Bh5 {[%clk 0:02:56.2]}
7. Nbd2 {[%clk 0:02:34.4]} 7... e5 {[%clk 0:02:53]} 8. dxe5 {[%clk 0:02:29.5]}
8... fxe5 {[%clk 0:02:53.2]} 9. g4 {[%clk 0:02:29]} 9... Bg6 {[%clk 0:02:52.5]}
10. Nxe5 {[%clk 0:02:27.1]} 10... Nxe5 {[%clk 0:02:52.7]} 11. Bxe5 {[%clk
0:02:27.7]} 11... Nf6 {[%clk 0:02:52.7]} 12. Bb5+ {[%clk 0:02:25]} 12... Nd7
{[%clk 0:02:50.8]} 13. c4 {[%clk 0:01:59.6]} 13... a6 {[%clk 0:02:50.3]} 14.
Bxd7+ {[%clk 0:01:58.1]} 14... Qxd7 {[%clk 0:02:51.2]} 15. O-O {[%clk 0:01:51]}
15... h5 {[%clk 0:02:49.9]} 16. cxd5 {[%clk 0:01:43.3]} 16... Qxd5 {[%clk
0:02:47.1]} 17. Qf3 {[%clk 0:01:43.3]} 17... Qxe5 {[%clk 0:02:45.6]} 18. Nc4
{[%clk 0:01:35]} 18... Qe4 {[%clk 0:02:42.5]} 19. Qg3 {[%clk 0:01:22.8]} 19...
hxg4 {[%clk 0:02:40]} 20. Nb6 {[%clk 0:01:09.8]} 20... Rxh3 {[%clk 0:02:31.8]}
0-1

[Event "*** Titled Tuesday Blitz"]
[Site "Chess.com"]
[Date "2021.03.09"]
[Round "5"]
[White "AlejandroPacheco29"]
[Black "Guzman70"]
[Result "0-1"]
[WhiteElo "2495"]
[BlackElo "2349"]
[TimeControl "180+1"]
[EndTime "10:55:37 PST"]
[Termination "Guzman70 won by resignation"]

1. e4 {[%clk 0:03:00.9]} 1... c6 {[%clk 0:02:59.4]} 2. d4 {[%clk 0:02:59.4]}
2... d5 {[%clk 0:02:59.9]} 3. e5 {[%clk 0:02:59.6]} 3... c5 {[%clk 0:02:59.7]}
4. dxc5 {[%clk 0:02:59.3]} 4... e6 {[%clk 0:02:59.5]} 5. a3 {[%clk 0:02:57.2]}
5... Bxc5 {[%clk 0:02:59]} 6. b4 {[%clk 0:02:57.5]} 6... Bb6 {[%clk 0:02:59.3]}
7. Qg4 {[%clk 0:02:57.2]} 7... Ne7 {[%clk 0:02:56.7]} 8. Nf3 {[%clk 0:02:56.6]}
8... Nbc6 {[%clk 0:02:47.2]} 9. Bb2 {[%clk 0:02:55.3]} 9... Nf5 {[%clk
0:02:35.4]} 10. Bd3 {[%clk 0:02:48.8]} 10... h5 {[%clk 0:02:35.1]} 11. Qf4
{[%clk 0:02:48.3]} 11... a5 {[%clk 0:02:07.7]} 12. b5 {[%clk 0:02:46.1]} 12...
Nce7 {[%clk 0:02:07.2]} 13. Nbd2 {[%clk 0:02:39.7]} 13... a4 {[%clk 0:01:53]}
14. Rd1 {[%clk 0:02:33.1]} 14... Ng6 {[%clk 0:01:51.6]} 15. Qb4 {[%clk
0:02:15.3]} 15... Ba5 {[%clk 0:01:47.9]} 16. Qc5 {[%clk 0:02:15.2]} 16... b6
{[%clk 0:01:44.3]} 17. Qc6+ {[%clk 0:01:43.9]} 17... Bd7 {[%clk 0:01:44.4]} 18.
Qxa8 {[%clk 0:01:44.8]} 18... Qxa8 {[%clk 0:01:44.3]} 19. O-O {[%clk 0:01:44.9]}
19... Nf4 {[%clk 0:01:37.5]} 20. Bxf5 {[%clk 0:01:44]} 20... exf5 {[%clk
0:01:38.4]} 21. c4 {[%clk 0:01:44.4]} 21... Bxd2 {[%clk 0:01:28.4]} 22. Nxd2
{[%clk 0:01:44.8]} 22... dxc4 {[%clk 0:01:24.8]} 23. f3 {[%clk 0:01:42.2]} 23...
c3 {[%clk 0:01:19.9]} 0-1

[Event "*** Titled Tuesday Blitz"]
[Site "Chess.com"]
[Date "2021.03.09"]
[Round "5"]
[White "SaqoChess_Twitch"]
[Black "lamomiablanca"]
[Result "0-1"]
[WhiteElo "2510"]
[BlackElo "2400"]
[TimeControl "180+1"]
[EndTime "10:55:46 PST"]
[Termination "lamomiablanca won by resignation"]

1. d4 {[%clk 0:02:38.3]} 1... Nf6 {[%clk 0:02:58.5]} 2. e3 {[%clk 0:02:39.2]}
2... g6 {[%clk 0:02:57.6]} 3. Nf3 {[%clk 0:02:39.2]} 3... Bg7 {[%clk 0:02:57.6]}
4. Be2 {[%clk 0:02:40.1]} 4... O-O {[%clk 0:02:57.2]} 5. O-O {[%clk 0:02:41]}
5... d6 {[%clk 0:02:55.7]} 6. b3 {[%clk 0:02:41.9]} 6... b6 {[%clk 0:02:53.8]}
7. Bb2 {[%clk 0:02:42.8]} 7... Bb7 {[%clk 0:02:54.1]} 8. Nbd2 {[%clk 0:02:43.3]}
8... Nbd7 {[%clk 0:02:54.3]} 9. c4 {[%clk 0:02:43.6]} 9... e6 {[%clk 0:02:52.2]}
10. Qc2 {[%clk 0:02:43.6]} 10... c5 {[%clk 0:02:51.7]} 11. dxc5 {[%clk 0:02:44]}
11... Nxc5 {[%clk 0:02:50.4]} 12. Rfd1 {[%clk 0:02:44.5]} 12... Qc7 {[%clk
0:02:49.4]} 13. b4 {[%clk 0:02:44.3]} 13... Nce4 {[%clk 0:02:47.8]} 14. Nxe4
{[%clk 0:02:42.9]} 14... Bxe4 {[%clk 0:02:47.1]} 15. Qb3 {[%clk 0:02:42.1]}
15... Rfd8 {[%clk 0:02:42.9]} 16. Rd2 {[%clk 0:02:40.1]} 16... Bb7 {[%clk
0:02:39.5]} 17. Rc1 {[%clk 0:02:37.6]} 17... Ne4 {[%clk 0:02:38.1]} 18. Rdd1
{[%clk 0:02:34.5]} 18... Rac8 {[%clk 0:02:32.8]} 19. Bxg7 {[%clk 0:02:33.3]}
19... Kxg7 {[%clk 0:02:32.9]} 20. Qb2+ {[%clk 0:02:33.9]} 20... Kg8 {[%clk
0:02:30.1]} 21. Nd2 {[%clk 0:02:32.6]} 21... Nxd2 {[%clk 0:02:24.8]} 22. Rxd2
{[%clk 0:02:33.5]} 22... d5 {[%clk 0:02:19.6]} 23. c5 {[%clk 0:02:24.9]} 23...
bxc5 {[%clk 0:02:18]} 24. Rxc5 {[%clk 0:02:25.8]} 24... Qb6 {[%clk 0:02:17.2]}
25. Rdc2 {[%clk 0:02:24.2]} 25... Rxc5 {[%clk 0:02:15.3]} 26. Rxc5 {[%clk
0:02:25.1]} 26... Rc8 {[%clk 0:02:09.5]} 27. Rxc8+ {[%clk 0:02:22.8]} 27... Bxc8
{[%clk 0:02:09.2]} 28. Qc3 {[%clk 0:02:23.7]} 28... Bd7 {[%clk 0:02:05.5]} 29.
Qc5 {[%clk 0:02:16.4]} 29... Qxc5 {[%clk 0:01:54]} 30. bxc5 {[%clk 0:02:17.3]}
30... e5 {[%clk 0:01:44]} 31. Kf1 {[%clk 0:02:17.7]} 31... Kf8 {[%clk
0:01:43.7]} 32. Ke1 {[%clk 0:02:18.3]} 32... Ke7 {[%clk 0:01:43.7]} 33. Kd2
{[%clk 0:02:19]} 33... Kd8 {[%clk 0:01:33.2]} 34. Kc3 {[%clk 0:02:19.4]} 34...
a5 {[%clk 0:01:32.7]} 35. f4 {[%clk 0:02:15.2]} 35... f6 {[%clk 0:01:32.4]} 36.
fxe5 {[%clk 0:02:14.7]} 36... fxe5 {[%clk 0:01:32.2]} 37. Bf3 {[%clk 0:02:15.3]}
37... Be6 {[%clk 0:01:16.4]} 38. a3 {[%clk 0:02:14]} 38... Kc7 {[%clk
0:01:14.9]} 0-1

[Event "*** Titled Tuesday Blitz"]
[Site "Chess.com"]
[Date "2021.03.09"]
[Round "5"]
[White "Grineva_Marianna"]
[Black "freshfoodcompany"]
[Result "0-1"]
[WhiteElo "2282"]
[BlackElo "2447"]
[TimeControl "180+1"]
[EndTime "10:55:58 PST"]
[Termination "freshfoodcompany won by checkmate"]

1. e4 {[%clk 0:03:00.9]} 1... c6 {[%clk 0:02:59.8]} 2. d4 {[%clk 0:03:00.5]}
2... d5 {[%clk 0:02:59.9]} 3. e5 {[%clk 0:03:01.1]} 3... Bf5 {[%clk 0:02:58.8]}
4. h4 {[%clk 0:03:01.1]} 4... h5 {[%clk 0:02:57.9]} 5. Bd3 {[%clk 0:03:01.1]}
5... Bxd3 {[%clk 0:02:56.2]} 6. Qxd3 {[%clk 0:03:02]} 6... Qa5+ {[%clk
0:02:55.8]} 7. Bd2 {[%clk 0:02:49.4]} 7... Qa6 {[%clk 0:02:55.8]} 8. Qb3 {[%clk
0:02:33.2]} 8... e6 {[%clk 0:02:52.5]} 9. Ne2 {[%clk 0:02:31.1]} 9... Ne7 {[%clk
0:02:48]} 10. Na3 {[%clk 0:02:15.7]} 10... Nf5 {[%clk 0:02:38]} 11. Rc1 {[%clk
0:02:13.4]} 11... Qxe2+ {[%clk 0:02:36.8]} 12. Kxe2 {[%clk 0:02:11.8]} 12...
Nxd4+ {[%clk 0:02:37.1]} 13. Kd3 {[%clk 0:02:12.1]} 13... Nxb3 {[%clk
0:02:37.4]} 14. axb3 {[%clk 0:02:09]} 14... Nd7 {[%clk 0:02:36.6]} 15. f4 {[%clk
0:02:07.8]} 15... Nc5+ {[%clk 0:02:34.9]} 16. Ke2 {[%clk 0:02:08.2]} 16... Ne4
{[%clk 0:02:33.9]} 17. Be1 {[%clk 0:02:02.7]} 17... Be7 {[%clk 0:02:31]} 18. Ra1
{[%clk 0:02:03.1]} 18... a6 {[%clk 0:02:25.8]} 19. g3 {[%clk 0:02:03.4]} 19...
c5 {[%clk 0:02:21.5]} 20. Kf3 {[%clk 0:02:03.6]} 20... O-O-O {[%clk 0:02:17.9]}
21. c3 {[%clk 0:02:03.8]} 21... Rh6 {[%clk 0:02:13.9]} 22. Nc2 {[%clk
0:02:03.3]} 22... f6 {[%clk 0:02:10.5]} 23. exf6 {[%clk 0:01:56.4]} 23... gxf6
{[%clk 0:02:07.9]} 24. Ne3 {[%clk 0:01:55.5]} 24... f5 {[%clk 0:01:56.1]} 25.
Ra5 {[%clk 0:01:36.7]} 25... Rg8 {[%clk 0:01:51.7]} 26. b4 {[%clk 0:01:22.3]}
26... cxb4 {[%clk 0:01:47.2]} 27. c4 {[%clk 0:01:20.2]} 27... d4 {[%clk
0:01:41.5]} 28. Nc2 {[%clk 0:01:19.2]} 28... d3 {[%clk 0:01:40.3]} 29. Bxb4
{[%clk 0:01:08.1]} 29... Rxg3# {[%clk 0:01:36.9]} 0-1

[Event "*** Titled Tuesday Blitz"]
[Site "Chess.com"]
[Date "2021.03.09"]
[Round "5"]
[White "jraosam"]
[Black "ErikRonka"]
[Result "0-1"]
[WhiteElo "1906"]
[BlackElo "2393"]
[TimeControl "180+1"]
[EndTime "10:56:24 PST"]
[Termination "ErikRonka won by resignation"]

1. d4 {[%clk 0:02:56.5]} 1... d5 {[%clk 0:02:59.6]} 2. Bf4 {[%clk 0:02:54]} 2...
c5 {[%clk 0:02:59.1]} 3. e3 {[%clk 0:02:48]} 3... cxd4 {[%clk 0:02:59.4]} 4.
exd4 {[%clk 0:02:45]} 4... Nc6 {[%clk 0:02:59.8]} 5. Nf3 {[%clk 0:02:20.4]} 5...
Bg4 {[%clk 0:02:58]} 6. Be2 {[%clk 0:02:20.2]} 6... e6 {[%clk 0:02:58]} 7. O-O
{[%clk 0:02:19.5]} 7... Nf6 {[%clk 0:02:58.1]} 8. h3 {[%clk 0:02:16.8]} 8...
Bxf3 {[%clk 0:02:54.7]} 9. Bxf3 {[%clk 0:02:15]} 9... Bd6 {[%clk 0:02:55.2]} 10.
Bxd6 {[%clk 0:02:14.1]} 10... Qxd6 {[%clk 0:02:56.1]} 11. Nd2 {[%clk 0:02:12.5]}
11... Nxd4 {[%clk 0:02:53.8]} 12. Re1 {[%clk 0:02:09]} 12... O-O {[%clk
0:02:50.8]} 13. c3 {[%clk 0:02:09.1]} 13... Nxf3+ {[%clk 0:02:49.9]} 14. Nxf3
{[%clk 0:02:08.8]} 14... b5 {[%clk 0:02:48.7]} 15. Ne5 {[%clk 0:02:09]} 15...
Rfd8 {[%clk 0:02:45.2]} 16. f4 {[%clk 0:02:02.7]} 16... a5 {[%clk 0:02:43.9]}
17. a4 {[%clk 0:01:58.1]} 17... b4 {[%clk 0:02:43.6]} 18. Qd4 {[%clk 0:01:52.4]}
18... bxc3 {[%clk 0:02:24.9]} 19. bxc3 {[%clk 0:01:47.5]} 19... Rdc8 {[%clk
0:02:20.2]} 20. Rab1 {[%clk 0:01:45.7]} 20... Qc5 {[%clk 0:02:11.5]} 21. Rb7
{[%clk 0:01:42.4]} 21... Qxc3 {[%clk 0:01:54.1]} 22. Qd1 {[%clk 0:01:34]} 22...
Rc7 {[%clk 0:01:47.3]} 23. Rxc7 {[%clk 0:01:25.8]} 23... Qxc7 {[%clk 0:01:48.2]}
24. Qd4 {[%clk 0:01:20.5]} 24... Ne4 {[%clk 0:01:39.3]} 25. Rb1 {[%clk
0:00:58.4]} 25... Rc8 {[%clk 0:01:29.6]} 26. Rb5 {[%clk 0:00:56]} 26... Qc1+
{[%clk 0:01:26.9]} 0-1

[Event "*** Titled Tuesday Blitz"]
[Site "Chess.com"]
[Date "2021.03.09"]
[Round "5"]
[White "ukchessbomber"]
[Black "Cambek64"]
[Result "0-1"]
[WhiteElo "2526"]
[BlackElo "2408"]
[TimeControl "180+1"]
[EndTime "10:56:42 PST"]
[Termination "Cambek64 won by checkmate"]

1. e4 {[%clk 0:03:00.5]} 1... e6 {[%clk 0:02:54.8]} 2. b3 {[%clk 0:02:58.4]}
2... d5 {[%clk 0:02:54]} 3. e5 {[%clk 0:02:59]} 3... c5 {[%clk 0:02:53.9]} 4.
Bb2 {[%clk 0:02:59.5]} 4... Nc6 {[%clk 0:02:54.2]} 5. f4 {[%clk 0:03:00.4]} 5...
Nge7 {[%clk 0:02:53.8]} 6. d3 {[%clk 0:03:00.8]} 6... Nf5 {[%clk 0:02:54.2]} 7.
Nf3 {[%clk 0:03:01.2]} 7... d4 {[%clk 0:02:54.6]} 8. Nbd2 {[%clk 0:03:00.2]}
8... Ne3 {[%clk 0:02:54.7]} 9. Qc1 {[%clk 0:03:00.7]} 9... Nb4 {[%clk
0:02:53.7]} 10. Rb1 {[%clk 0:02:54.5]} 10... Nxa2 {[%clk 0:02:51]} 11. Be2
{[%clk 0:02:50.5]} 11... Nxc1 {[%clk 0:02:49.1]} 12. Rxc1 {[%clk 0:02:51.4]}
12... Be7 {[%clk 0:02:47.3]} 13. g4 {[%clk 0:02:49.3]} 13... Nxg4 {[%clk
0:02:36.7]} 14. Ne4 {[%clk 0:02:47.6]} 14... Ne3 {[%clk 0:02:35.9]} 15. Rg1
{[%clk 0:02:45.1]} 15... g6 {[%clk 0:02:33]} 16. c3 {[%clk 0:02:41.1]} 16... Nf5
{[%clk 0:02:31.4]} 17. cxd4 {[%clk 0:02:40.9]} 17... cxd4 {[%clk 0:02:31.7]} 18.
Nfg5 {[%clk 0:02:36.9]} 18... O-O {[%clk 0:02:30.2]} 19. h4 {[%clk 0:02:30.7]}
19... Bd7 {[%clk 0:02:29.4]} 20. h5 {[%clk 0:02:30.5]} 20... Bc6 {[%clk
0:02:28]} 21. hxg6 {[%clk 0:02:30.6]} 21... hxg6 {[%clk 0:02:26.6]} 22. Bg4
{[%clk 0:02:19.5]} 22... Kg7 {[%clk 0:02:22.1]} 23. Rc2 {[%clk 0:02:06.5]} 23...
Bxg5 {[%clk 0:02:15.5]} 24. fxg5 {[%clk 0:01:54.4]} 24... Bxe4 {[%clk
0:02:12.6]} 25. dxe4 {[%clk 0:01:53.4]} 25... Ne3 {[%clk 0:02:13.1]} 26. Rd2
{[%clk 0:01:54]} 26... Nxg4 {[%clk 0:02:12.7]} 27. Rxg4 {[%clk 0:01:54.9]} 27...
Rh8 {[%clk 0:02:09.4]} 28. Bxd4 {[%clk 0:01:51.4]} 28... Qa5 {[%clk 0:02:03.6]}
29. Rg2 {[%clk 0:01:36.3]} 29... Rh1+ {[%clk 0:02:00.7]} 30. Ke2 {[%clk
0:01:36]} 30... Qb5+ {[%clk 0:01:58.9]} 31. Kf2 {[%clk 0:01:32.9]} 31... Qf1+
{[%clk 0:01:56.5]} 32. Kg3 {[%clk 0:01:32.3]} 32... Rah8 {[%clk 0:01:54.3]} 33.
Rdf2 {[%clk 0:01:23.1]} 33... R8h3+ {[%clk 0:01:53.3]} 34. Kf4 {[%clk
0:01:20.1]} 34... Qd3 {[%clk 0:01:48.8]} 35. Bxa7 {[%clk 0:01:15.7]} 35... Rh4+
{[%clk 0:01:47.2]} 36. Rg4 {[%clk 0:01:16.2]} 36... Rxg4+ {[%clk 0:01:46.5]} 37.
Kxg4 {[%clk 0:01:17.1]} 37... Qxe4+ {[%clk 0:01:45]} 38. Kg3 {[%clk 0:01:14.2]}
38... Qh4+ {[%clk 0:01:39.6]} 39. Kf3 {[%clk 0:01:13.9]} 39... Rh3+ {[%clk
0:01:39.5]} 40. Kg2 {[%clk 0:01:06.6]} 40... Qg4+ {[%clk 0:01:34.6]} 41. Kf1
{[%clk 0:01:05.9]} 41... Rh1# {[%clk 0:01:34]} 0-1